lending/lending_fUSD_20240705
["ID","MTS","AMOUNT","RATE_DAILY","PERIOD"]
[331238181,1720150241093,-500.0,0.00017887,2]
[331238184,1720150241103,-1597.76,0.00017888,2]
[331238186,1720150241113,-3029.23223496,0.00017889,2]
[331238188,1720150241124,-250.0,0.00017934,2]
[331238189,1720150241133,-614.53,0.00017934,2]
[331238190,1720150241143,-250.0,0.00018019,2]
[331238191,1720150241157,-150.21388471,0.00018055,2]
[331238192,1720150241172,-49.78611529,0.00018055,2]
[331238193,1720150241182,-208.03626155,0.00018081,2]
[331238194,1720150241193,-1823.46635197,0.00018081,2]
[331238195,1720150241203,-991.5117,0.00018081,2]
[331238196,1720150241213,-179.3,0.00018084,2]
[331238197,1720150241223,-491.82194803,0.00018084,2]
[331238198,1720150241236,-8.16805197,0.00018084,2]
[331238199,1720150241245,-155.189,0.00018122,2]
[331238200,1720150241255,-177.72,0.0001813,2]
[331238201,1720150241265,-2751.0,0.00018172,2]
[331238202,1720150241275,-382.0,0.000183,3]
[331238204,1720150241285,-151.0,0.00018352,2]
[331238206,1720150241295,-849.64,0.00018395,2]
[331238208,1720150241305,-401.34,0.00018444,2]
[331238210,1720150241315,-492.22,0.0001852,2]
[331238212,1720150241325,-492.22,0.00018571,2]
[331238214,1720150241335,-492.22,0.00018622,2]
[331238216,1720150241345,-1517.5122226,0.00018649,2]
[331238218,1720150241357,-242.68327894,0.00018649,2]
[331238220,1720150241367,-151.0,0.00018671,2]
[331238222,1720150241377,-492.22,0.00018673,2]
[331238224,1720150241388,-190.69,0.00018693,2]
[331238226,1720150241398,-492.22,0.00018724,2]
[331238228,1720150241415,-755.31740263,0.00018739,2]
[331238230,1720150241425,-369.18435415,0.00018759,2]
[331238232,1720150241438,-253.8348138,0.00018759,2]
[331238234,1720150241450,-1000.0,0.00018774,2]
[331238236,1720150241460,-492.22,0.00018774,2]
[331238238,1720150241470,-5869.0,0.000188,2]
[331238240,1720150241480,-492.22,0.00018825,2]
[331238242,1720150241490,-155.31005863,0.00018835,2]
[331238244,1720150241500,-187.91116236,0.00018835,2]
[331238246,1720150241510,-252.49810629,0.00018835,2]
[331238248,1720150241520,-1547.58956559,0.00018835,2]
[331238250,1720150241530,-1073.28164816,0.00018835,2]
[331238252,1720150241540,-600.06033415,0.00018835,7]
[331238254,1720150241550,-1287.48512797,0.00018835,2]
[331238256,1720150241560,-474.86366289,0.00018835,2]
[331238258,1720150241571,-1547.58956559,0.00018835,2]
[331238260,1720150241581,-225.97,0.00018849,30]
[331238262,1720150241591,-370.76260341,0.00018864,2]
[331238264,1720150241602,-266.43574909,0.00018864,2]
[331238266,1720150241613,-170.04352249,0.00018864,2]
[331238268,1720150241623,-652.85645457,0.00018864,2]
[331238270,1720150241635,-266.43574909,0.00018864,2]
[331238272,1720150241645,-155.0,0.00018864,2]
[331238274,1720150241663,-162.80801493,0.00018864,2]
[331238276,1720150241673,-155.69823997,0.00018864,2]
[331238278,1720150241682,-277.86700626,0.00018864,2]
[331238280,1720150241692,-492.30166492,0.00018864,2]
[331238282,1720150241703,-458.56830439,0.00018864,2]
[331238284,1720150241712,-155.33760166,0.00018864,2]
[331238286,1720150241722,-492.22,0.00018876,2]
[331238288,1720150241733,-258.97923164,0.00018899,2]
[331238290,1720150241744,-258.97923164,0.00018899,2]
[331238292,1720150241754,-372.52897045,0.00018899,2]
[331238294,1720150241764,-164.64933833,0.00018899,2]
[331238296,1720150241773,-285.48807537,0.00018899,2]
[331238298,1720150241783,-199.97837926,0.00018899,2]
[331238300,1720150241793,-178.87034562,0.00018899,2]
[331238302,1720150241802,-155.71962169,0.00018899,2]
[331238304,1720150241812,-196.69013977,0.00018899,2]
[331238306,1720150241822,-197.30874747,0.00018899,2]
[331238307,1720150241832,-245.0557517,0.00018919,2]
[331238309,1720150241841,-297.70719904,0.00018919,2]
[331238311,1720150241851,-155.0,0.00018919,2]
[331238314,1720150241861,-492.22,0.00018927,2]
[331238315,1720150241871,-492.22,0.00018978,2]
[331238317,1720150241880,-151.0,0.0001899,2]
[331238319,1720150241890,-155.0,0.00018999,2]
[331238322,1720150241900,-159.53759203,0.00018999,2]
[331238324,1720150241914,-328.89692869,0.00018999,2]
[331238326,1720150241924,-2375.7192167,0.00018999,2]
[331238328,1720150241935,-253.18473153,0.00018999,2]
[331238330,1720150241946,-258.24689047,0.00018999,2]
[331238332,1720150241956,-1250.0,0.00019,2]
[331238334,1720150241966,-5000.0,0.00019,2]
[331238336,1720150241976,-1605.28204855,0.00019,2]
[331238338,1720150241986,-155.96421959,0.00019,2]
[331238340,1720150241997,-156.41924798,0.00019,2]
[331238342,1720150242006,-492.22,0.00019028,2]
[331238344,1720150242016,-413.21120921,0.00019069,2]
[331238346,1720150242026,-157.0592216,0.00019069,2]
[331238348,1720150242035,-155.189,0.00019074,2]
[331238350,1720150242045,-581.29314094,0.00019077,2]
[331238352,1720150242054,-295.46908239,0.00019077,2]
[331238354,1720150242064,-492.22,0.00019079,2]
[331238355,1720150242074,-492.22,0.0001913,2]
[331238358,1720150242084,-582.0,0.00019174,2]
[331238359,1720150242094,-155.0,0.00019177,2]
[331238361,1720150242104,-443.28251761,0.00019177,2]
[331238364,1720150242114,-250.0,0.00019178,2]
[331238365,1720150242124,-6034.69940781,0.00019178,2]
[331238397,1720150242423,-980.97815524,0.00019178,2]
[331238400,1720150242435,-948.90215079,0.00019178,2]
[331238402,1720150242447,-795.2682055,0.00019178,2]
[331238404,1720150242459,-1007.38297438,0.00019178,2]
[331238406,1720150242471,-4685.98287592,0.00019178,2]
[331238409,1720150242483,-320.16807046,0.00019178,2]
[331238411,1720150242497,-845.57482597,0.00019178,2]
[331238413,1720150242508,-7005.38333393,0.00019178,2]
[331238415,1720150242519,-3151.49397063,0.00019178,2]
[331238475,1720150243003,-278.44879699,0.00017533,2]
[331238478,1720150243016,-2494.69630517,0.00017533,2]
[331238480,1720150243029,-4.61602937,0.00019178,2]
[331238482,1720150243039,-4148.24609096,0.00019178,2]
[331238485,1720150243050,-1322.11999999,0.00019178,2]
[331238487,1720150243062,-380.29072024,0.00019178,2]
[331238489,1720150243074,-880.37342147,0.00019178,2]
[331238491,1720150243085,-48019.51976734,0.00019178,2]
[331238493,1720150243095,-492.22,0.00019181,2]
[331238495,1720150243105,-492.22,0.00019231,2]
[331238497,1720150243115,-300.0,0.00019247,2]
[331238499,1720150243126,-492.22,0.00019282,2]
[331238501,1720150243136,-155.27904643,0.00019299,2]
[331238503,1720150243146,-11484.0,0.000193,3]
[331238505,1720150243158,-151.0,0.00019309,2]
[331238507,1720150243168,-167.0,0.00019328,2]
[331238509,1720150243178,-492.22,0.00019333,2]
[331238511,1720150243189,-334.89192372,0.0001935,2]
[331238513,1720150243199,-520.77399716,0.00019352,2]
[331238515,1720150243208,-800.0,0.00019353,2]
[331238517,1720150243218,-155.0,0.00019354,2]
[331238519,1720150243228,-492.22,0.00019384,2]
[331238521,1720150243238,-492.22,0.00019435,2]
[331238523,1720150243248,-492.22,0.00019485,2]
[331238525,1720150243258,-151.0,0.00019628,2]
[331238527,1720150243268,-504.23385468,0.00019725,2]
[331238529,1720150243278,-529.32286142,0.00019725,2]
[331238531,1720150243289,-11484.0,0.000198,5]
[331238533,1720150243299,-9890.0,0.00019815,2]
[331238535,1720150243309,-11521.38682133,0.000199,2]
[331238537,1720150243319,-11521.38682131,0.000199,2]
[331238539,1720150243330,-151.0,0.00019947,2]
[331238541,1720150243340,-19804.68706189,0.00019964,2]
[331238543,1720150243350,-155.0,0.00019964,2]
[331238545,1720150243360,-155.1437021,0.00019964,2]
[331238547,1720150243370,-167.0,0.00019966,2]
[331238549,1720150243380,-150.0,0.00019972,2]
[331238551,1720150243390,-370.01476321,0.0001999,2]
[331238553,1720150243400,-6710.19062126,0.00019997,2]
[331238555,1720150243414,-200.0,0.0002,2]
[331238557,1720150243424,-200.0,0.0002,2]
[331238559,1720150243434,-200.0,0.0002,2]
[331238561,1720150243443,-200.0,0.0002,2]
[331238562,1720150243453,-201.0,0.0002,2]
[331238564,1720150243463,-189.18626654,0.0002,2]
[331238566,1720150243472,-776.24835398,0.0002,2]
[331238568,1720150243482,-776.24835398,0.0002,2]
[331238571,1720150243493,-776.24835398,0.0002,2]
[331238572,1720150243503,-776.24835398,0.0002,2]
[331238574,1720150243513,-776.24835398,0.0002,2]
[331238576,1720150243523,-776.24835398,0.0002,2]
[331238579,1720150243533,-776.24835398,0.0002,2]
[331238580,1720150243542,-776.24835398,0.0002,2]
[331238581,1720150243552,-776.24835398,0.0002,2]
[331238582,1720150243562,-776.24835398,0.0002,2]
[331238583,1720150243572,-776.24835398,0.0002,2]
[331238584,1720150243582,-776.24835398,0.0002,2]
[331238585,1720150243593,-776.24835398,0.0002,2]
[331238586,1720150243604,-776.24835398,0.0002,2]
[331238587,1720150243615,-776.24835398,0.0002,2]
[331238588,1720150243627,-776.24835398,0.0002,2]
[331238589,1720150243637,-776.24835398,0.0002,2]
[331238590,1720150243649,-776.24835398,0.0002,2]
[331238591,1720150243665,-776.24835398,0.0002,2]
[331238592,1720150243675,-776.24835398,0.0002,2]
[331238594,1720150243686,-776.24835398,0.0002,2]
[331238596,1720150243699,-776.24835398,0.0002,2]
[331238597,1720150243712,-776.24835398,0.0002,2]
[331238599,1720150243723,-776.24835398,0.0002,2]
[331238601,1720150243734,-776.24835398,0.0002,2]
[331238603,1720150243745,-776.24835398,0.0002,2]
[331238605,1720150243754,-776.24835398,0.0002,2]
[331238607,1720150243764,-776.24835398,0.0002,2]
[331238609,1720150243775,-776.24835398,0.0002,2]
[331238611,1720150243784,-776.24835398,0.0002,2]
[331238613,1720150243795,-776.24835398,0.0002,2]
[331238615,1720150243804,-776.24835398,0.0002,2]
[331238617,1720150243814,-776.24835398,0.0002,2]
[331238618,1720150243825,-776.24835398,0.0002,2]
[331238619,1720150243835,-776.24835398,0.0002,2]
[331238620,1720150243844,-776.24835398,0.0002,2]
[331238621,1720150243854,-776.24835398,0.0002,2]
[331238622,1720150243864,-776.24835398,0.0002,2]
[331238623,1720150243874,-776.24835398,0.0002,2]
[331238624,1720150243884,-776.24835398,0.0002,2]
[331238625,1720150243894,-776.24835398,0.0002,2]
[331238626,1720150243907,-776.24835398,0.0002,2]
[331238628,1720150243918,-776.24835398,0.0002,2]
[331238630,1720150243928,-776.24835398,0.0002,2]
[331238632,1720150243938,-776.24835398,0.0002,2]
[331238634,1720150243948,-776.24835398,0.0002,2]
[331238635,1720150243958,-776.24835398,0.0002,2]
[331238638,1720150243967,-776.24835398,0.0002,2]
[331238640,1720150243977,-776.24835398,0.0002,2]
[331238642,1720150243987,-776.24835398,0.0002,2]
[331238644,1720150243996,-776.24835398,0.0002,2]
[331238646,1720150244006,-776.24835398,0.0002,2]
[331238648,1720150244016,-776.24835398,0.0002,2]
[331238649,1720150244025,-776.24835398,0.0002,2]
[331238652,1720150244035,-776.24835398,0.0002,2]
[331238654,1720150244045,-776.24835398,0.0002,2]
[331238656,1720150244055,-776.24835398,0.0002,2]
[331238658,1720150244065,-776.24835398,0.0002,2]
[331238660,1720150244075,-776.24835398,0.0002,2]
[331238661,1720150244085,-776.24835398,0.0002,2]
[331238663,1720150244095,-776.24835398,0.0002,2]
[331238666,1720150244105,-776.24835398,0.0002,2]
[331238667,1720150244115,-776.24835398,0.0002,2]
[331238669,1720150244125,-776.24835398,0.0002,2]
[331238671,1720150244135,-776.24835398,0.0002,2]
[331238672,1720150244145,-776.24835398,0.0002,2]
[331238673,1720150244158,-776.24835398,0.0002,2]
[331238674,1720150244169,-776.24835398,0.0002,2]
[331238675,1720150244179,-776.24835398,0.0002,2]
[331238676,1720150244189,-776.24835398,0.0002,2]
[331238677,1720150244202,-776.24835398,0.0002,2]
[331238678,1720150244213,-776.24835398,0.0002,2]
[331238679,1720150244222,-776.24835398,0.0002,2]
[331238680,1720150244233,-776.24835398,0.0002,2]
[331238681,1720150244246,-776.24835398,0.0002,2]
[331238682,1720150244256,-776.24835398,0.0002,2]
[331238683,1720150244269,-776.24835398,0.0002,2]
[331238684,1720150244280,-776.24835398,0.0002,2]
[331238685,1720150244290,-776.24835398,0.0002,2]
[331238686,1720150244299,-776.24835398,0.0002,2]
[331238687,1720150244310,-324.66883156,0.0002,2]
[331238688,1720150244320,-324.66883156,0.0002,2]
[331238689,1720150244331,-324.66883156,0.0002,2]
[331238690,1720150244341,-324.66883156,0.0002,2]
[331238691,1720150244351,-324.66883156,0.0002,2]
[331238692,1720150244360,-324.66883156,0.0002,2]
[331238693,1720150244371,-324.66883156,0.0002,2]
[331238694,1720150244381,-324.66883156,0.0002,2]
[331238695,1720150244392,-324.66883156,0.0002,2]
[331238696,1720150244402,-324.66883156,0.0002,2]
[331238697,1720150244417,-324.66883156,0.0002,2]
[331238698,1720150244426,-324.66883156,0.0002,2]
[331238699,1720150244436,-324.66883156,0.0002,2]
[331238700,1720150244446,-324.66883156,0.0002,2]
[331238701,1720150244456,-324.66883156,0.0002,2]
[331238702,1720150244466,-324.66883156,0.0002,2]
[331238703,1720150244477,-324.66883156,0.0002,2]
[331238704,1720150244488,-324.66883156,0.0002,2]
[331238705,1720150244499,-324.66883156,0.0002,2]
[331238706,1720150244510,-324.66883156,0.0002,2]
[331238707,1720150244520,-324.66883156,0.0002,2]
[331238708,1720150244530,-324.66883156,0.0002,2]
[331238709,1720150244540,-324.66883156,0.0002,2]
[331238710,1720150244551,-324.66883156,0.0002,2]
[331238711,1720150244562,-324.66883156,0.0002,2]
[331238712,1720150244572,-324.66883156,0.0002,2]
[331238713,1720150244583,-324.66883156,0.0002,2]
[331238714,1720150244594,-324.66883156,0.0002,2]
[331238715,1720150244607,-324.66883156,0.0002,2]
[331238716,1720150244620,-324.66883156,0.0002,2]
[331238717,1720150244631,-324.66883156,0.0002,2]
[331238722,1720150244641,-324.66883156,0.0002,2]
[331238726,1720150244651,-324.66883156,0.0002,2]
[331238729,1720150244672,-324.66883156,0.0002,2]
[331238734,1720150244683,-324.66883156,0.0002,2]
[331238738,1720150244694,-324.66883156,0.0002,2]
[331238742,1720150244705,-324.66883156,0.0002,2]
[331238745,1720150244714,-324.66883156,0.0002,2]
[331238748,1720150244724,-324.66883156,0.0002,2]
[331238751,1720150244735,-324.66883156,0.0002,2]
[331238753,1720150244746,-324.66883156,0.0002,2]
[331238754,1720150244757,-209.25563205,0.00020062,2]
[331238756,1720150244767,-155.189,0.00020125,2]
[331238759,1720150244777,-169.46,0.00020127,2]
[331238762,1720150244787,-151.911,0.00020162,2]
[331238764,1720150244798,-2470.802,0.00020162,2]
[331238766,1720150244809,-1305.0,0.00020162,2]
[331238768,1720150244820,-283.0,0.00020162,2]
[331238770,1720150244830,-1988.0,0.00020162,2]
[331238772,1720150244840,-3224.0,0.00020162,2]
[331238773,1720150244850,-569.608,0.00020162,2]
[331238775,1720150244860,-945.296,0.00020162,2]
[331238777,1720150244870,-1830.0,0.00020162,2]
[331238779,1720150244880,-360.0,0.00020162,2]
[331238780,1720150244889,-1275.0,0.00020162,2]
[331238782,1720150244899,-5831.042,0.00020162,2]
[331238783,1720150244914,-292.106,0.00020162,2]
[331238785,1720150244923,-5202.057,0.00020162,2]
[331238787,1720150244933,-1658.0,0.00020162,2]
[331238788,1720150244944,-1199.0,0.00020162,2]
[331238790,1720150244954,-1669.657,0.00020162,2]
[331238792,1720150244964,-150.0,0.00020244,2]
[331238793,1720150244974,-151.0,0.00020266,2]
[331238795,1720150244983,-150.0,0.00020494,4]
[331238796,1720150244993,-350.32948448,0.0002052,2]
[331238798,1720150245003,-172.52,0.00020548,2]
[331238799,1720150245013,-20078.94,0.00020548,2]
[331238801,1720150245022,-151.0,0.00020585,2]
[331238803,1720150245032,-167.0,0.00020604,2]
[331238804,1720150245042,-300.0,0.00020617,2]
[331238806,1720150245051,-11521.38682131,0.00020658,2]
[331238807,1720150245061,-849.64,0.00020658,2]
[331238808,1720150245070,-6629.2013,0.00020663,2]
[331238809,1720150245080,-857.4272,0.00020669,2]
[331238810,1720150245089,-745.0577,0.00020669,2]
[331238811,1720150245099,-176.24,0.00020686,2]
[331238812,1720150245108,-241.79570467,0.00020731,2]
[331238813,1720150245118,-150.0,0.00020744,4]
[331238814,1720150245128,-3790.81,0.00020747,2]
[331238815,1720150245137,-3790.81,0.00020752,2]
[331238816,1720150245146,-3790.81,0.00020758,2]
[331238817,1720150245159,-3790.81,0.00020763,2]
[331238818,1720150245168,-3790.81,0.00020769,2]
[331238819,1720150245177,-3790.81,0.00020774,2]
[331238820,1720150245186,-3790.81,0.0002078,2]
[331238821,1720150245196,-303.92397838,0.0002078,2]
[331238822,1720150245206,-3790.81,0.00020785,2]
[331238823,1720150245216,-3790.81,0.00020791,2]
[331238824,1720150245226,-3790.81,0.00020796,2]
[331238825,1720150245236,-1331.0,0.000208,2]
[331238826,1720150245246,-3790.81,0.00020801,2]
[331238827,1720150245256,-3790.81,0.00020807,2]
[331238828,1720150245266,-3790.81,0.00020812,2]
[331238829,1720150245275,-3790.81,0.00020818,2]
[331238830,1720150245285,-3790.81,0.00020823,2]
[331238831,1720150245295,-3790.81,0.00020829,2]
[331238832,1720150245305,-3790.81,0.00020834,2]
[331238833,1720150245316,-3790.81,0.0002084,2]
[331238834,1720150245327,-3790.81,0.00020845,2]
[331238835,1720150245336,-3790.81,0.0002085,2]
[331238836,1720150245346,-151.0,0.00020904,2]
[331238837,1720150245356,-1280.0,0.00020945,2]
[331238838,1720150245366,-150.0,0.00020994,4]
[331238839,1720150245376,-225.25950071,0.00021,2]
[331238840,1720150245385,-1300.0,0.00021,2]
[331238841,1720150245395,-8902.07730506,0.00021008,3]
[331238842,1720150245408,-189.3277,0.00021018,2]
[331238843,1720150245420,-818.236499,0.00021018,2]
[331238844,1720150245430,-184.542606,0.00021018,2]
[331238845,1720150245441,-929.961447,0.00021018,2]
[331238846,1720150245451,-161.258095,0.00021018,2]
[331238847,1720150245461,-176.404276,0.00021018,2]
[331238848,1720150245471,-757.726194,0.00021018,2]
[331238849,1720150245481,-151.650663,0.00021018,2]
[331238850,1720150245490,-194.835721,0.00021018,2]
[331238851,1720150245499,-1286.66941,0.00021018,2]
[331238852,1720150245508,-217.61795,0.00021018,2]
[331238853,1720150245519,-310.507057,0.00021018,2]
[331238854,1720150245529,-167.897588,0.00021018,2]
[331238855,1720150245538,-181.075425,0.00021018,2]
[331238856,1720150245548,-466.203116,0.00021018,2]
[331238857,1720150245558,-172.733296,0.00021018,2]
[331238858,1720150245567,-164.196939,0.00021018,2]
[331238859,1720150245577,-175.166661,0.00021018,2]
[331238860,1720150245587,-1000.0,0.00021121,2]
[331238861,1720150245596,-151.0,0.00021223,2]
[331238862,1720150245608,-167.0,0.00021242,2]
[331238863,1720150245619,-150.0,0.00021244,4]
[331238864,1720150245629,-818.236499,0.0002128,2]
[331238865,1720150245638,-929.961447,0.0002128,2]
[331238866,1720150245649,-757.726194,0.0002128,2]
[331238867,1720150245663,-151.650663,0.0002128,2]
[331238868,1720150245672,-1286.66941,0.0002128,2]
[331238869,1720150245681,-310.507057,0.0002128,2]
[331238870,1720150245692,-466.203116,0.0002128,2]
[331238871,1720150245703,-155.189,0.0002129,2]
[331238872,1720150245712,-165.09,0.0002135,2]
[331238873,1720150245856,-8902.07730506,0.0002136,3]
[331238874,1720150245866,-167.897588,0.00021368,2]
[331238875,1720150245875,-938.742233,0.0002137,2]
[331238876,1720150245886,-3299.0,0.0002137,2]
[331238877,1720150245897,-180.0,0.00021397,2]
[331238878,1720150245908,-150.0,0.00021493,4]
[331238879,1720150245920,-151.0,0.00021542,2]
[331238880,1720150245930,-818.236499,0.00021543,2]
[331238881,1720150245939,-161.258095,0.00021543,2]
[331238882,1720150245949,-929.961447,0.00021543,2]
[331238883,1720150245963,-757.726194,0.00021543,2]
[331238884,1720150245972,-151.650663,0.00021543,2]
[331238885,1720150245981,-1286.66941,0.00021543,2]
[331238886,1720150245990,-181.075425,0.00021543,2]
[331238887,1720150245999,-310.507057,0.00021543,2]
[331238888,1720150246009,-466.203116,0.00021543,2]
[331238889,1720150246018,-8902.07730506,0.0002157,3]
[331238890,1720150246027,-26706.2319152,0.0002158,3]
[331238891,1720150246036,-165.09,0.0002158,2]
[331238892,1720150246046,-71216.6184405,0.0002159,3]
[331238893,1720150246055,-165.09,0.0002159,2]
[331238894,1720150246065,-165.09,0.0002159,2]
[331238895,1720150246075,-3739.7418,0.000216,2]
[331238896,1720150246089,-128645.6397,0.000216,2]
[331238897,1720150246099,-876.4359,0.000216,2]
[331238898,1720150246108,-324.90783423,0.000216,2]
[331238899,1720150246117,-8902.07730506,0.00021603,3]
[331238900,1720150246126,-157.44470744,0.00021613,2]
[331238901,1720150246136,-29627.6487796,0.00021613,2]
[331238902,1720150246146,-168.45,0.00021644,2]
[331238903,1720150246157,-165.09,0.0002168,2]
[331238904,1720150246167,-165.09,0.0002168,2]
[331238905,1720150246176,-124629.082271,0.0002169,3]
[331238906,1720150246185,-165.09,0.0002169,2]
[331238907,1720150246194,-165.09,0.0002169,2]
[331238908,1720150246204,-165.09,0.0002169,2]
[331238909,1720150246213,-250000.0,0.000217,2]
[331238910,1720150246223,-167.897588,0.00021718,2]
[331238911,1720150246232,-8902.07730506,0.00021719,3]
[331238912,1720150246241,-165.09,0.00021719,2]
[331238913,1720150246251,-29627.64877959,0.00021729,2]
[331238914,1720150246260,-150.0,0.00021743,4]
[331238915,1720150246269,-818.236499,0.00021806,2]
[331238916,1720150246278,-929.961447,0.00021806,2]
[331238917,1720150246288,-757.726194,0.00021806,2]
[331238918,1720150246297,-151.650663,0.00021806,2]
[331238919,1720150246307,-1286.66941,0.00021806,2]
[331238920,1720150246316,-310.507057,0.00021806,2]
[331238921,1720150246326,-466.203116,0.00021806,2]
[331238922,1720150246335,-7161.9496,0.00021813,2]
[331238923,1720150246344,-13542.8027,0.00021813,2]
[331238924,1720150246354,-159.80473579,0.00021818,2]
[331238925,1720150246363,-29627.64877959,0.00021845,2]
[331238926,1720150246372,-151.0,0.00021861,2]
[331238927,1720150246382,-167.0,0.0002188,2]
[331238928,1720150246391,-165.09,0.00021906,2]
[331238929,1720150246401,-1107.03550662,0.00021916,2]
[331238930,1720150246413,-2000.0,0.00021916,2]
[331238931,1720150246423,-1000.0,0.00021917,2]
[331238932,1720150246432,-891.52,0.00021918,2]
[331238933,1720150246441,-167.64,0.00021918,2]
[331238934,1720150246450,-150.0,0.00021918,2]
[331238935,1720150246459,-500.0,0.00021933,2]
[331238936,1720150246468,-200.0,0.00021933,2]
[331238937,1720150246477,-29627.64877959,0.00021961,2]
[331238938,1720150246486,-150.0,0.00021993,4]
[331238939,1720150246496,-285.37406163,0.00022,2]
[331238940,1720150246505,-1450.0,0.00022006,2]
[331238941,1720150246514,-285.37406163,0.00022013,2]
[331238942,1720150246523,-3427.47095133,0.00022024,2]
[331238943,1720150246533,-271.71494604,0.00022026,2]
[331238944,1720150246542,-992.70844829,0.00022032,2]
[331238945,1720150246551,-165.09,0.00022043,2]
[331238946,1720150246561,-452.8864648,0.00022049,2]
[331238947,1720150246570,-678.59777895,0.00022052,2]
[331238948,1720150246579,-50000.0,0.00022053,2]
[331238949,1720150246588,-166.75903184,0.00022059,2]
[331238950,1720150246597,-251.17385601,0.00022061,2]
[331238951,1720150246608,-151.2595875,0.00022065,2]
[331238952,1720150246617,-678.59777895,0.00022068,2]
[331238953,1720150246630,-167.897588,0.00022068,2]
[331238954,1720150246639,-818.236499,0.00022068,2]
[331238955,1720150246649,-176.404276,0.00022068,2]
[331238956,1720150246661,-929.961447,0.00022068,2]
[331238957,1720150246671,-757.726194,0.00022068,2]
[331238958,1720150246679,-161.258095,0.00022068,2]
[331238959,1720150246689,-151.650663,0.00022068,2]
[331238960,1720150246699,-194.835721,0.00022068,2]
[331238961,1720150246709,-1286.66941,0.00022068,2]
[331238962,1720150246720,-217.61795,0.00022068,2]
[331238963,1720150246729,-181.075425,0.00022068,2]
[331238964,1720150246738,-310.507057,0.00022068,2]
[331238965,1720150246748,-466.203116,0.00022068,2]
[331238966,1720150246757,-171.80883893,0.00022073,2]
[331238967,1720150246767,-29627.64877959,0.00022077,2]
[331238968,1720150246776,-285.37406163,0.00022088,2]
[331238969,1720150246786,-3017.99888585,0.00022098,2]
[331238970,1720150246796,-1915.8795671,0.00022107,2]
[331238971,1720150246805,-182.0,0.0002211,4]
[331238972,1720150246814,-2943.554,0.00022133,2]
[331238973,1720150246823,-3365.42130429,0.00022142,3]
[331238974,1720150246833,-154.42831925,0.00022159,2]
[331238975,1720150246842,-1280.9548049,0.0002217,2]
[331238976,1720150246851,-150.0,0.00022176,2]
[331238977,1720150246861,-151.0,0.0002218,2]
[331238978,1720150246870,-165.09,0.0002218,2]
[331238979,1720150246879,-678.59777895,0.00022182,2]
[331238980,1720150246889,-165.09,0.00022183,2]
[331238981,1720150246898,-150.0,0.00022189,2]
[331238983,1720150246915,-58000.0,0.0002219,2]
[331238985,1720150246925,-1000.0,0.00022191,4]
[331238986,1720150246936,-938.742233,0.00022192,2]
[331238989,1720150246946,-29627.64877959,0.00022193,2]
[331238991,1720150246955,-6279.51081998,0.00022199,2]
[331238993,1720150246965,-58000.0,0.00022199,2]
[331238994,1720150246975,-6010.56448306,0.00022211,7]
[331238995,1720150246986,-159.66084199,0.00022211,2]
[331238996,1720150246996,-992.70844829,0.00022212,2]
[331238997,1720150247006,-159.1773599,0.00022213,2]
[331238998,1720150247015,-150.20681206,0.00022215,2]
[331238999,1720150247025,-171.06603737,0.00022218,2]
[331239000,1720150247035,-285.37406163,0.00022221,2]
[331239001,1720150247044,-2019.62512008,0.00022222,2]
[331239002,1720150247054,-5800.0,0.00022234,2]
[331239003,1720150247064,-3427.47095133,0.00022237,2]
[331239004,1720150247073,-500.0,0.00022241,2]
[331239005,1720150247082,-5800.0,0.00022242,2]
[331239006,1720150247092,-150.0,0.00022243,4]
[331239007,1720150247101,-500.0,0.0002225,2]